Cogmind - Beta 12 @@@ ROGUE MODE // 2023.03.29 @ 11:53:59 Player: Rohain Result: Self-destructed Performance ------------- Evolutions (1) 500 Regions Visited (3) 600 Robots Destroyed (49) 245 Value Destroyed (1435) 1435 Prototype IDs (2) 40 Alien Tech Used (0) 0 Bonus (79) 79 TOTAL SCORE: 2899 Bonus ------- High Alert Combat Kills 79 Cogmind --------- Core Integrity 26/400 Matter 300/300 Energy 280/280 System Corruption 0% Temperature Cool (23) Movement Core (350) Ox6 Location -9/Materials Parts ------- > --- POWER (1) -------- Heavy Ion Engine > --- PROPULSION (3) --- (None) > --- UTILITY (3) ------ Medium Storage Unit Targeting Computer Targeting Computer > --- WEAPON (2) ------- Heavy Hammer > --- INVENTORY (10) --- Light Nuclear Core Aluminum Leg Aluminum Leg Improved Heat Sink Large Storage Unit Experimental Sensor Array Signal Interpreter Light Armor Plating Rocket Launcher Peak State ------------ > --- POWER ------------ Improved Ion Engine > --- PROPULSION ------- Aluminum Leg Aluminum Leg Improved Aluminum Leg > --- UTILITY ---------- Medium Storage Unit Targeting Computer Targeting Computer > --- WEAPON ----------- Heavy Assault Rifle Improved Assault Rifle > --- INVENTORY -------- Ion Engine Heavy Ion Engine Light Nuclear Core Improved Heat Sink Large Storage Unit Experimental Sensor Array Signal Interpreter Light Armor Plating EM Pulse Gun Rocket Launcher [Rating: 16] Favorites ----------- Power Ion Engine Engine Ion Engine Power Core Light Nuclear Core Propulsion Aluminum Leg Leg Aluminum Leg Utility Targeting Computer Storage Medium Storage Unit Processor Targeting Computer Weapon Assault Rifle Energy Gun EM Pulse Gun Ballistic Gun Assault Rifle Impact Weapon Heavy Hammer Build | -11 -10 -10 -9 ------- Run | Jun Mat Min Mat Slots Evolved 2 | . . . 2 Power . | . . . . Propulsion 1 | . . . 1 Utility 1 | . . . 1 Weapon . | . . . . Parts Attached 41 | 7 3 13 18 Power 10 | 2 1 3 4 Engine 8 | 2 1 2 3 Core 2 | . . 1 1 Reactor . | . . . . Propulsion 15 | 2 . 7 6 Treads . | . . . . Leg 15 | 2 . 7 6 Wheel . | . . . . Hover . | . . . . Flight . | . . . . Utility 5 | 1 2 1 1 Device . | . . . . Storage 2 | 1 1 . . Processor 3 | . 1 1 1 Hackware . | . . . . Protection . | . . . . Artifact . | . . . . Weapon 11 | 2 . 2 7 Energy Gun 2 | . . . 2 Energy Cannon . | . . . . Ballistic Gun 8 | 2 . 2 4 Ballistic Cannon . | . . . . Launcher . | . . . . Special Weapon . | . . . . Impact Weapon 1 | . . . 1 Slashing Weapon . | . . . . Piercing Weapon . | . . . . Special Melee Weapon . | . . . . Unidentified Prototypes 2 | . . . 2 Parts Lost 14 | . . 3 11 Power 2 | . . 1 1 Propulsion 6 | . . 2 4 Utility . | . . . . Weapon 6 | . . . 6 Highest Loss Streak 5 | . . 2 5 To Critical Strikes . | . . . . Average Slot Usage (%) 98 | . 99 99 97 Engine 10 | . 14 13 4 Core 2 | . . . 5 Leg 29 | . 28 27 32 Storage 12 | . 14 14 11 Processor 17 | . 13 14 22 Energy Gun 1 | . . . 5 Ballistic Gun 23 | . 28 28 15 Naked Turns . | . . . . Heaviest Build 23 | 14 19 20 23 Greatest Support 33 | 20 20 20 33 Greatest Overweight (x) 2 | . . 1 2 Average Overweight (x) . | . . . . Largest Inventory Capacity 10 | 8 10 10 10 Average Capacity 9 | 6 8 10 10 Most Carried 10 | 2 10 10 10 Average Carried 9 | . 7 9 9 Final Capacity 10 | 8 10 10 10 Final Carried 10 | 2 10 10 9 Class Distribution -------------------- 60% | Scavenger-Mutant 39% | Mutant Dominant Class ---------------- Mutant | -10/Materials Scavenger-Mutant | -10/Mines Scavenger-Mutant | -9/Materials Resources | -11 -10 -10 -9 ----------- Run | Jun Mat Min Mat Matter Collected 1140 | 122 210 431 377 Remotely . | . . . . Salvage Created 1936 | . 225 615 1096 Parts 121 | . 17 32 72 Haulers Intercepted 1 | . 1 . . Recyclers Shooed 1 | . . . 1 Parts Field Recycled . | . . . . Retrieved Matter . | . . . . Parts Self-Destructed . | . . . . Prevented . | . . . . Kills | -11 -10 -10 -9 ------- Run | Jun Mat Min Mat Combat Hostiles Destroyed 43 | . 6 11 26 Guns 42 | . 6 11 25 AOE 1 | . . . 1 Classes Destroyed 9 | . 3 2 4 Worker 1 | . . . 1 Builder 1 | . . . 1 Hauler 1 | . 1 . . Recycler 1 | . . 1 . Watcher 2 | . . . 2 Swarmer 11 | . 3 . 8 Grunt 23 | . 3 9 11 Brawler 1 | . . . 1 Sentry 8 | . . 2 6 Best Kill Streak 11 | . 2 2 11 Combat Bots Only 11 | . 2 2 11 Max Kills in Single Turn 2 | . 1 1 2 Gunslinging 1 | . . . 1 Exploded 1 | . . . 1 Melee . | . . . . Uniques/NPCs Destroyed . | . . . . Combat | -11 -10 -10 -9 -------- Run | Jun Mat Min Mat Damage Taken 2514 | . 268 702 1544 Core 517 | . 46 97 374 Absorbed by Shields . | . . . . Core Remaining (%) 71 | 100 . 42 . Volleys Fired 125 | . 23 35 67 Largest 2 | . 2 2 2 Hottest 63 | . 40 43 63 Shots Fired 245 | . 46 70 129 Gun 245 | . 46 70 129 Cannon . | . . . . Launcher . | . . . . Special . | . . . . Kinetic 215 | . 46 70 99 Thermal 7 | . . . 7 Explosive . | . . . . Electromagnetic 23 | . . . 23 Robot Hit Streak 29 | . 11 14 29 Robot Miss Streak 4 | . 3 2 4 Penetration Max . | . . . . Secondary Targets 5 | . . . 5 Max Gunslinging Chain 1 | . . . 1 Shots Hit Robots 184 | . 30 54 100 Core Hits 87 | . 12 25 50 Critical Kills 1 | . 1 . . Critical Parts Destroyed . | . . . . Critical Strikes 1 | . 1 . . Destroy 1 | . 1 . . Melee Attacks . | . . . . Impact . | . . . . Slashing . | . . . . Piercing . | . . . . Sneak Attacks . | . . . . Combat Hostiles . | . . . . Follow-up Attacks . | . . . . Damage Inflicted 2534 | . 406 719 1409 Guns 2415 | . 406 719 1290 Cannons . | . . . . Explosions 107 | . . . 107 Melee . | . . . . Ramming 12 | . . . 12 Kinetic 2129 | . 406 719 1004 Thermal 158 | . . . 158 Explosive . | . . . . Electromagnetic 235 | . . . 235 Impact . | . . . . Slashing . | . . . . Piercing . | . . . . Highest Corruption . | . . . . Average Corruption . | . . . . Corruption Purged . | . . . . Corruption Blocked . | . . . . Overload Shots . | . . . . Overflow Damage 14 | . . . 14 Projectiles . | . . . . Explosions 14 | . . . 14 Melee . | . . . . Knockbacks . | . . . . Impact . | . . . . Kinetic . | . . . . Secondary . | . . . . Self-Inflicted Damage 61 | . . . 61 Shots 2 | . . . 2 Rammed . | . . . . Targets Rammed 1 | . . . 1 Kicked 1 | . . . 1 Crushed . | . . . . Highest Temperature 48 | . 20 35 48 Average Temperature 14 | . 11 8 16 Received Heat Transfer 1128 | . 147 423 558 Siege Activations . | . . . . Robots Corrupted . | . . . . Combat Hostiles . | . . . . Parts Fried 1 | . . . 1 Impact Corruptions . | . . . . Robots Melted . | . . . . Combat Hostiles . | . . . . Parts Melted . | . . . . Heat Transferred 275 | . . . 275 Parts Sabotaged . | . . . . Parts Stolen . | . . . . Parts Stripped . | . . . . Power Chain Reactions 2 | . . . 2 Missiles Intercepted . | . . . . Alert | -11 -10 -10 -9 ------- Run | Jun Mat Min Mat Peak Influence 515 | . 107 150 515 Initial 58 | . . 19 58 Average 162 | . 55 81 314 Maximum Alert Level 2 | . . . 2 Low Security (%) 71 | 100 100 100 25 Level 1 15 | . . . 40 Level 2 12 | . . . 34 Level 3 . | . . . . Level 4 . | . . . . Level 5 . | . . . . High Security . | . . . . Max Security . | . . . . Squads Dispatched 4 | . 1 . 3 Investigation 2 | . . . 2 Extermination . | . . . . Reinforcement 2 | . 1 . 1 Assault . | . . . . Garrison . | . . . . Intercept . | . . . . Searches Triggered . | . . . . Construction Impeded . | . . . . Haulers Reinforced . | . . . . Active Scanning Responses . | . . . . Cargo Convoy Interrupts . | . . . . Stealth | -11 -10 -10 -9 --------- Run | Jun Mat Min Mat Distress Signals 5 | . 2 . 3 Communications Jammed . | . . . . Distress Signals . | . . . . Times Spotted 62 | . 10 12 40 Peak Tracking Total 9 | . 4 2 9 Tactical Retreats 1 | . . 1 . Traps | -11 -10 -10 -9 ------- Run | Jun Mat Min Mat Traps Triggered 1 | . . . 1 Indirectly . | . . . . Trap Hack Attempts . | . . . . Triggered . | . . . . Disarmed . | . . . . Reprogrammed . | . . . . Reused . | . . . . Traps Extracted . | . . . . Installed . | . . . . Triggered . | . . . . Machines | -11 -10 -10 -9 ---------- Run | Jun Mat Min Mat Machines Disabled 1 | . . . 1 Max in Single Turn 1 | . . . 1 Machines Repaired . | . . . . Machines Sabotaged . | . . . . Overloaded Fab Kills . | . . . . Hacking | -11 -10 -10 -9 --------- Run | Jun Mat Min Mat Machines Accessed 7 | . 2 . 5 Terminals 7 | . 2 . 5 Fabricators . | . . . . Repair Stations . | . . . . Recycling Units . | . . . . Scanalyzers . | . . . . Garrison Access . | . . . . Total Hacks 22 | . 7 . 15 Successful 11 | . 5 . 6 Failed 11 | . 2 . 9 Catastrophic 1 | . . . 1 Database Lockouts . | . . . . Manual 22 | . 7 . 15 Terminals 22 | . 7 . 15 Fabricators . | . . . . Repair Stations . | . . . . Recycling Units . | . . . . Scanalyzers . | . . . . Garrison Access . | . . . . Terminal Hacks 6 | . 3 . 3 Terminal Index 1 | . . . 1 Alert Level 2 | . 1 . 1 Unreport Threat 2 | . 1 . 1 Locate Traps 1 | . 1 . . Fabricator Hacks . | . . . . Repair Station Hacks . | . . . . Recycling Unit Hacks . | . . . . Scanalyzer . | . . . . Garrison Access Hacks . | . . . . Unauthorized Hacks 5 | . 2 . 3 Terminals 5 | . 2 . 3 Botnet 5 | . 2 . 3 Fabricators . | . . . . Repair Stations . | . . . . Recycling Units . | . . . . Scanalyzers . | . . . . Garrison Access . | . . . . Data Cores Recovered . | . . . . Used . | . . . . Hacking Detections 5 | . . . 5 Full Trace Events 1 | . . . 1 Feedback Events . | . . . . Feedback Blocked . | . . . . Robot Schematics Acquired . | . . . . Robots Built . | . . . . Authchips . | . . . . Time . | . . . . Total Robot Build Rating . | . . . . Part Schematics Acquired . | . . . . Parts Built . | . . . . Authchips . | . . . . Time . | . . . . Total Part Build Rating . | . . . . Parts Repaired . | . . . . Time . | . . . . Parts Recycled . | . . . . Recycled Matter . | . . . . Retrieved Matter . | . . . . Retrieved Components . | . . . . Parts Scanalyzed . | . . . . Part Schematics Acquired . | . . . . Parts Damaged . | . . . . Bothacking | -11 -10 -10 -9 ------------ Run | Jun Mat Min Mat Used RIF Installer . | . . . . Robots Hacked . | . . . . Non-combat . | . . . . Combat . | . . . . Robot Hacks Applied . | . . . . Relay Couplers Released . | . . . . Fabnet Peak Effective % . | . . . . Robots Rewired . | . . . . Allies Hacked . | . . . . Hacks Repelled . | . . . . Allies | -11 -10 -10 -9 -------- Run | Jun Mat Min Mat Total Allies . | . . . . Largest Group . | . . . . Highest-Rated Group . | . . . . Highest-Rated Ally . | . . . . Total Orders . | . . . . Ally Attacks . | . . . . Total Damage . | . . . . Kills . | . . . . Allies Corrupted . | . . . . Allies Melted . | . . . . Intel | -11 -10 -10 -9 ------- Run | Jun Mat Min Mat Robot Analysis Total . | . . . . Derelict Logs Recovered . | . . . . Drone Launches . | . . . . Drone Recoveries . | . . . . Exploration | -11 -10 -10 -9 ------------- Run | Jun Mat Min Mat Turns Passed 1903 | 56 371 756 720 Spaces Moved 1146 | 38 223 495 390 Core 2 | 2 . . . Treads . | . . . . Legs 1144 | 36 223 495 390 Wheels . | . . . . Hover . | . . . . Flight . | . . . . Fastest Speed 50 | 50 120 120 120 Average Speed 120 | 116 120 120 120 Slowest Speed 260 | 120 120 190 260 Overloaded Moves . | . . . . Propulsion Burnouts . | . . . . Robots Hopped . | . . . . Cave-ins Triggered . | . . . . Exploration Rate (%) 44 | 3 49 83 44 Regions Visited 3 Branch Regions 1 Pre-discovered Areas . | . . . . Known Exits Taken 2 | . 1 1 . Unknown Exits Taken 1 | 1 . . . Scrap Searched 1 | . . 1 . Spaces Dug . | . . . . Terrain Destroyed 4 | . . . 4 Melee . | . . . . Projectile . | . . . . AOE 4 | . . . 4 Terrain Rammed . | . . . . Walls Destroyed . | . . . . Machines Disabled . | . . . . Actions | -11 -10 -10 -9 --------- Run | Jun Mat Min Mat Total 1430 | 46 280 590 514 Wait 83 | . 23 33 27 Move 1143 | 37 222 494 390 Hop . | . . . . Pick Up 17 | 2 8 4 3 Fast Attach 18 | 6 1 3 8 Attach 8 | . . 2 6 Detach 1 | . . . 1 Swap 15 | 1 2 8 4 Drop 19 | . 1 11 7 Fire 125 | . 23 35 67 Melee . | . . . . Ram . | . . . . Kick 1 | . . . 1 Crush . | . . . . Escape Stasis . | . . . . Rewire . | . . . . Trap . | . . . . Miscellaneous . | . . . . Route ------- -11/Junkyard -10/Materials (discovered 3 exits: *Mat / *Min x2) -10/Mines (discovered 2 exits: *Mat x2) -9/Materials (discovered 2 exits: [*Mat x2]) History --------- Turn | Location | Event 6 | -11/Junkyard | Discovered new exit (range 15) 57 | -11/Junkyard | Entered Materials 181 | -10/Materials | Discovered new exit (range 7) 186 | -10/Materials | Discovered new exit (range 16) 189 | -10/Materials | Identified exit to Mines 253 | -10/Materials | Discovered new exit (range 8) 304 | -10/Materials | Build established: Mutant 428 | -10/Materials | Entered Mines 444 | -10/Mines | Received a Rocket Launcher from a helpful Derelict 529 | -10/Mines | Discovered new exit (range 10) 567 | -10/Mines | Identified exit to Materials 832 | -10/Mines | Found a damaged Exp. Sensor Array with a note attached 835 | -10/Mines | Found Prototype Device 910 | -10/Mines | Core integrity fell below 50% 1013 | -10/Mines | Build established: Scavenger-Mutant 1141 | -10/Mines | Discovered exit to Materials (range 9) 1184 | -10/Mines | Entered Materials 1184 | -9/Materials | Evolved 2 slots: Propulsion x1, Utility x1 1565 | -9/Materials | Destroyed 11 combat bots 1569 | -9/Materials | Lost 3 parts (1p1n1w) 1650 | -9/Materials | Discovered new exit (range 5) 1661 | -9/Materials | Core integrity fell below 50% 1793 | -9/Materials | Discovered new exit (range 15) 1894 | -9/Materials | Core integrity fell below 20% 1904 | -9/Materials | Self-destructed Last Messages --------------- 01828_ Acquired 3 matter. 01836_ Dropped Lgt. Nuclear Core. 01837_ Identified Hvy. Ion Engine. 01843_ Acquired Lgt. Nuclear Core. 01844_ Dropped Lgt. Nuclear Core. 01865_ Chain reaction triggered in Ion Engine. 01865_ G-34 Mercenary destroyed. 01865_ EM Pulse Gun destroyed. 01865_ Destroyed EM Pulse Gun. 01865_ Electrolysis Chamber disabled. 01867_ Lgt. Assault Rifle destroyed. 01875_ Acquired 1 matter. 01877_ Critical hit (Burn: +37). 01880_ U-05 Engineer lays Concrete. 01882_ Kicked A-02 Transporter. 01882_ U-05 Engineer lays Concrete. 01895_ Acquired Hvy. Hammer. 01897_ Aluminum Leg destroyed. 01903_ Critical hit (Burn: +37). 01903_ K-01 Serf destroyed. Map ----- +----------------------------------------------------+ | ??????? # ???# #?????????? | | ??????"?# ???# #?????????? | | ?????? ?# ???# < #?????????? | | ????????# ???# """ #?????????? | | ????????# ???# """"" ###+########?????? | | ????????# ???# """"" ## #?????? | | ???????????????# """"" ## """ "T" #?????? | | ???????????????# """ ## """ #?????? | | ???????????????# ## """ #?????? | | ???????????????# ## #?????? | | ???????????????# + #?????? | | ???????????????# % ### * !#?????? | | ?????????????###+#"""###%##?# *=#?????? | | ?????????????# = ## #??#########%#?????? | | ?????????????# ## #??????????###?????? | | ?????????????# """ ## #??????????????????? | | ?????????????# """ ## #??????????????????? | | ?????????????# ## #??????????????????? | | ?????????????# """ ## #??????????????????? | | ?????????????# """ ## ####???????????????? | | ?????????????# """ # gY #???????????????? | | ?????????????# # #???????????????? | | ?????????????########## #???????????????? | | ??????????????????????# #???????????????? | | ??????????????????????# ! #???????????????? | | ??????????????????????##%@ ##???????????????? | | ???????????????????????#= #????????????????? | | ???????????????????????+ g#????????????????? | | ?????????????????????? #g #????????????????? | | ????????????????????? # g #????????????????? | | ????????????????????? ?# ????????????????? | | ????????????????????] ?# ????????????????? | | ???????????????????##??# !!=???????????????? | | ???????????????????????# !!=???????????????? | | ???????????????????????# !! ???????????????? | | ??????????????????????? ??????????????? | | ??????????????????????? ??????????????? | | ??????????????????????? ??????????????? | | ???????????????????????###### ?????????????? | | ????????????????????????????? ??????????????? | | ????????????????????????????????????????????? | | ????????????????????????????????????????????? | | ????????????????????????????????????????????? | | ????????????????????????????????????????????? | | ????????????????????????????????????????????? | | ????????????????????????????????????????????? | | ????????????????????????????????????????????? | | ????????????????????????????????????????????? | | ????????????????????????????????????????????? | | ????????????????????????????????????????????? | +----------------------------------------------------+ Best States ------------- Heat Dissipation 28 Energy Generation 14 Energy Capacity 280 Matter Stores 300 Matter Capacity 300 Sight Range 16 Terrain Scan Density 10 Evasion (%) 55 Targeting Accuracy 10 Item Schematics ----------------- None Robot Schematics ------------------ None Fabricated ------------ Nothing Alien Tech Used ----------------- None Achievements -------------- None Challenges ------------ None Game ------ Seed PlatingShrapnelRegenerator Manual? 0 Play Time 00:19:34 Cumulative 28.9 hours Start 2023.03.29 @ 11:38:34 End 2023.03.29 @ 11:53:59 Sessions 1 Manual Loads 0 Difficulty Rogue Special Mode None Game No. 41 Rogue 25 Adventurer 16 Explorer 0 Win Type - Total 0 Types 0/0/0/0/0/0/0/0/0 Lore% 17 Gallery% 33 Achievement% 32 Wizard Run 0 Options --------- ASCII 0 Keyboard 0 Movement Mouse Keybinds 0 Fullscreen 0 Font 18/SmallcapsGlow Map View 66x50 Tactical HUD 1 Map Filters NONE Filters NONE Steam X RUN: 5dd8a2aa-47a5-432a-bc28-74a9157a43a0